[Event "Titled Tuesday Blitz June 8 2021"]
[White "Oparin, Grigoriy"]
[Black "Aradhya, Garg"]
[WhiteFideId "24125890"]
[BlackFideId "25006746"]
[WhiteElo "2628"]
[BlackElo "2146"]
[Result "0-1"]
[Round "05"]
[TimeControl "180+1"]
[Date "2021.06.08"]
[WhiteClock "0:00:01"]
[BlackClock "0:00:02"]

1. Nc3 {[%clk 0:03:00]}  d5 {[%clk 0:02:58]} 2. e4 {[%clk 0:03:00]}  d4 {[%clk 0:02:58]} 3. Nce2 {[%clk 0:03:00]}  e5 {[%clk 0:02:56]} 4. Ng3 {[%clk 0:02:58]}  c5 {[%clk 0:02:55]} 5. Bc4 {[%clk 0:02:57]}  Nc6 {[%clk 0:02:53]} 6. a4 {[%clk 0:02:55]}  Bd6 {[%clk 0:02:49]} 7. d3 {[%clk 0:02:56]}  Nge7 {[%clk 0:02:39]} 8. Bg5 {[%clk 0:02:51]}  O-O {[%clk 0:02:22]} 9. Qh5 {[%clk 0:02:47]}  Na5 {[%clk 0:01:52]} 10. Bd5 {[%clk 0:02:47]}  Qb6 {[%clk 0:01:36]} 11. Bxe7 {[%clk 0:02:36]}  Bxe7 {[%clk 0:01:35]} 12. b3 {[%clk 0:02:31]}  Be6 {[%clk 0:01:17]} 13. Bxe6 {[%clk 0:02:31]}  Qxe6 {[%clk 0:01:16]} 14. Nf3 {[%clk 0:02:18]}  Nc6 {[%clk 0:01:16]} 15. h4 {[%clk 0:02:02]}  a6 {[%clk 0:01:07]} 16. Ng5 {[%clk 0:01:45]}  Qg6 {[%clk 0:01:06]} 17. Qf3 {[%clk 0:01:17]}  h6 {[%clk 0:00:49]} 18. Nh3 {[%clk 0:01:07]}  Bxh4 {[%clk 0:00:48]} 19. Nf5 {[%clk 0:01:07]}  Bf6 {[%clk 0:00:47]} 20. a5 {[%clk 0:00:58]}  Rfd8 {[%clk 0:00:44]} 21. g3 {[%clk 0:00:56]}  Kf8 {[%clk 0:00:44]} 22. Ng1 {[%clk 0:00:53]}  Ke8 {[%clk 0:00:42]} 23. Qe2 {[%clk 0:00:50]}  Kd7 {[%clk 0:00:41]} 24. Nf3 {[%clk 0:00:49]}  Kc7 {[%clk 0:00:39]} 25. Nd2 {[%clk 0:00:50]}  Be7 {[%clk 0:00:19]} 26. Nc4 {[%clk 0:00:48]}  Bf8 {[%clk 0:00:19]} 27. Nb6 {[%clk 0:00:48]}  Rab8 {[%clk 0:00:19]} 28. Qf3 {[%clk 0:00:44]}  Qe6 {[%clk 0:00:16]} 29. Nd5+ {[%clk 0:00:43]}  Kc8 {[%clk 0:00:15]} 30. Ke2 {[%clk 0:00:40]}  Nb4 {[%clk 0:00:15]} 31. Nb6+ {[%clk 0:00:40]}  Kc7 {[%clk 0:00:15]} 32. Kd1 {[%clk 0:00:38]}  Re8 {[%clk 0:00:11]} 33. Kc1 {[%clk 0:00:34]}  h5 {[%clk 0:00:11]} 34. Kb2 {[%clk 0:00:20]}  g6 {[%clk 0:00:11]} 35. Nh4 {[%clk 0:00:20]}  Be7 {[%clk 0:00:09]} 36. Ng2 {[%clk 0:00:20]}  Rf8 {[%clk 0:00:07]} 37. Qe2 {[%clk 0:00:20]}  f5 {[%clk 0:00:07]} 38. f3 {[%clk 0:00:19]}  fxe4 {[%clk 0:00:07]} 39. fxe4 {[%clk 0:00:18]}  Rf7 {[%clk 0:00:06]} 40. Raf1 {[%clk 0:00:17]}  Rbf8 {[%clk 0:00:06]} 41. Nc4 {[%clk 0:00:16]}  Nc6 {[%clk 0:00:05]} 42. Ne1 {[%clk 0:00:14]}  Bg5 {[%clk 0:00:04]} 43. Nf3 {[%clk 0:00:13]}  Be7 {[%clk 0:00:04]} 44. Rf2 {[%clk 0:00:12]}  Kd7 {[%clk 0:00:05]} 45. Rhf1 {[%clk 0:00:13]}  Ke8 {[%clk 0:00:05]} 46. Nh4 {[%clk 0:00:09]}  Bxh4 {[%clk 0:00:03]} 47. gxh4 {[%clk 0:00:09]}  Ke7 {[%clk 0:00:04]} 48. Rxf7+ {[%clk 0:00:09]}  Rxf7 {[%clk 0:00:03]} 49. Rxf7+ {[%clk 0:00:09]}  Qxf7 {[%clk 0:00:04]} 50. Qg2 {[%clk 0:00:09]}  Qf6 {[%clk 0:00:04]} 51. Qg3 {[%clk 0:00:09]}  Nd8 {[%clk 0:00:03]} 52. Nb6 {[%clk 0:00:09]}  Kd6 {[%clk 0:00:03]} 53. Nd5 {[%clk 0:00:09]}  Qe6 {[%clk 0:00:03]} 54. Qg5 {[%clk 0:00:09]}  Nf7 {[%clk 0:00:03]} 55. Qg1 {[%clk 0:00:08]}  Qg4 {[%clk 0:00:03]} 56. Qf1 {[%clk 0:00:08]}  Qe6 {[%clk 0:00:03]} 57. Qe1 {[%clk 0:00:06]}  Kc6 {[%clk 0:00:03]} 58. b4 {[%clk 0:00:06]}  cxb4 {[%clk 0:00:03]} 59. Qxb4 {[%clk 0:00:07]}  Qd6 {[%clk 0:00:02]} 60. Qb6+ {[%clk 0:00:07]}  Kd7 {[%clk 0:00:03]} 61. Qxb7+ {[%clk 0:00:07]}  Ke8 {[%clk 0:00:03]} 62. Qc8+ {[%clk 0:00:05]}  Nd8 {[%clk 0:00:03]} 63. Kc1 {[%clk 0:00:03]}  Qc6 {[%clk 0:00:03]} 64. Qb8 {[%clk 0:00:02]}  Qc5 {[%clk 0:00:03]} 65. Qxe5+ {[%clk 0:00:02]}  Kd7 {[%clk 0:00:01]} 66. Nb6+ {[%clk 0:00:03]}  Kc6 {[%clk 0:00:02]} 67. Qf6+ {[%clk 0:00:03]}  Kb5 {[%clk 0:00:01]} 68. Qxd8 {[%clk 0:00:03]}  Qa3+ {[%clk 0:00:01]} 69. Kd2 {[%clk 0:00:03]}  Qxa5+ {[%clk 0:00:02]} 70. Kd1 {[%clk 0:00:02]}  Qxb6 {[%clk 0:00:02]} 71. Qd5+ {[%clk 0:00:02]}  Qc5 {[%clk 0:00:02]} 72. Qb3+ {[%clk 0:00:01]}  Qb4 {[%clk 0:00:02]} 0-1


[Site "https://www.chess.com"]

[Event "Titled Tuesday Blitz June 8 2021"]
[White "Perez Ponsa, Federico"]
[Black "Maly, Alexey"]
[WhiteFideId "117927"]
[BlackFideId "14103184"]
[WhiteElo "2672"]
[BlackElo "2285"]
[Result "1/2-1/2"]
[Round "05"]
[TimeControl "180+1"]
[Date "2021.06.08"]
[WhiteClock "0:00:13"]
[BlackClock "0:00:21"]

1. e4 {[%clk 0:02:56]}  c6 {[%clk 0:03:00]} 2. d4 {[%clk 0:02:56]}  d5 {[%clk 0:03:00]} 3. exd5 {[%clk 0:02:57]}  cxd5 {[%clk 0:03:00]} 4. Bd3 {[%clk 0:02:57]}  Nc6 {[%clk 0:02:59]} 5. c3 {[%clk 0:02:58]}  Qc7 {[%clk 0:02:59]} 6. h3 {[%clk 0:02:58]}  g6 {[%clk 0:02:58]} 7. Nf3 {[%clk 0:02:59]}  Bf5 {[%clk 0:02:57]} 8. Be2 {[%clk 0:02:59]}  Nf6 {[%clk 0:02:56]} 9. O-O {[%clk 0:03:00]}  Bg7 {[%clk 0:02:56]} 10. Na3 {[%clk 0:03:00]}  a6 {[%clk 0:02:55]} 11. Nc2 {[%clk 0:02:58]}  Bxc2 {[%clk 0:02:50]} 12. Qxc2 {[%clk 0:02:58]}  O-O {[%clk 0:02:50]} 13. Re1 {[%clk 0:02:54]}  e6 {[%clk 0:02:47]} 14. Bd3 {[%clk 0:02:53]}  b5 {[%clk 0:02:43]} 15. a3 {[%clk 0:02:28]}  Rab8 {[%clk 0:02:39]} 16. Qe2 {[%clk 0:02:27]}  Rfc8 {[%clk 0:02:34]} 17. a4 {[%clk 0:02:21]}  Na5 {[%clk 0:02:19]} 18. axb5 {[%clk 0:02:13]}  axb5 {[%clk 0:02:19]} 19. Bxb5 {[%clk 0:02:12]}  Nb3 {[%clk 0:02:16]} 20. Ra2 {[%clk 0:02:02]}  Nxc1 {[%clk 0:02:06]} 21. Rxc1 {[%clk 0:02:03]}  Ne4 {[%clk 0:02:00]} 22. Bd3 {[%clk 0:02:00]}  Nd6 {[%clk 0:01:59]} 23. Rca1 {[%clk 0:01:59]}  Rb6 {[%clk 0:01:52]} 24. Ra7 {[%clk 0:01:56]}  Qd8 {[%clk 0:01:52]} 25. R1a6 {[%clk 0:01:41]}  Rxa6 {[%clk 0:01:49]} 26. Rxa6 {[%clk 0:01:39]}  Rb8 {[%clk 0:01:42]} 27. g3 {[%clk 0:01:39]}  Qc7 {[%clk 0:01:39]} 28. Kg2 {[%clk 0:01:39]}  h6 {[%clk 0:01:32]} 29. h4 {[%clk 0:01:34]}  Ne4 {[%clk 0:01:19]} 30. Bxe4 {[%clk 0:01:22]}  dxe4 {[%clk 0:01:20]} 31. Qxe4 {[%clk 0:01:23]}  Rxb2 {[%clk 0:01:10]} 32. Ra8+ {[%clk 0:01:23]}  Kh7 {[%clk 0:01:10]} 33. h5 {[%clk 0:01:24]}  Qxc3 {[%clk 0:00:44]} 34. hxg6+ {[%clk 0:01:12]}  fxg6 {[%clk 0:00:45]} 35. Qxe6 {[%clk 0:01:13]}  h5 {[%clk 0:00:40]} 36. Qg8+ {[%clk 0:00:27]}  Kh6 {[%clk 0:00:39]} 37. Ra7 {[%clk 0:00:27]}  Rxf2+ {[%clk 0:00:32]} 38. Kxf2 {[%clk 0:00:24]}  Bxd4+ {[%clk 0:00:29]} 39. Kg2 {[%clk 0:00:19]}  Qc2+ {[%clk 0:00:24]} 40. Kh3 {[%clk 0:00:15]}  Qf5+ {[%clk 0:00:22]} 41. Kg2 {[%clk 0:00:15]}  Qc2+ {[%clk 0:00:21]} 42. Kh3 {[%clk 0:00:12]}  Qf5+ {[%clk 0:00:21]} 43. Kg2 {[%clk 0:00:13]}  Qc2+ {[%clk 0:00:21]} 1/2-1/2


[Site "https://www.chess.com"]

[Event "Titled Tuesday Blitz June 8 2021"]
[White "Popilski, Gil"]
[Black "Martin Duque, Jesus"]
[WhiteFideId "2809060"]
[BlackFideId "2208954"]
[WhiteElo "2537"]
[BlackElo "2246"]
[Result "0-1"]
[Round "05"]
[TimeControl "180+1"]
[Date "2021.06.08"]
[WhiteClock "0:00:14"]
[BlackClock "0:00:54"]

1. e4 {[%clk 0:03:00]}  c5 {[%clk 0:02:58]} 2. Nf3 {[%clk 0:03:00]}  e6 {[%clk 0:02:58]} 3. d4 {[%clk 0:02:59]}  cxd4 {[%clk 0:02:59]} 4. Nxd4 {[%clk 0:03:00]}  Nc6 {[%clk 0:03:00]} 5. Nc3 {[%clk 0:02:59]}  Qc7 {[%clk 0:03:00]} 6. Be3 {[%clk 0:02:59]}  a6 {[%clk 0:03:00]} 7. Bd3 {[%clk 0:02:58]}  Nf6 {[%clk 0:03:01]} 8. O-O {[%clk 0:02:58]}  b5 {[%clk 0:03:00]} 9. Nxc6 {[%clk 0:02:55]}  Qxc6 {[%clk 0:03:01]} 10. Bd4 {[%clk 0:02:23]}  Bb7 {[%clk 0:02:57]} 11. Qf3 {[%clk 0:02:10]}  Be7 {[%clk 0:02:45]} 12. a3 {[%clk 0:02:09]}  d6 {[%clk 0:02:40]} 13. Qg3 {[%clk 0:02:08]}  e5 {[%clk 0:02:31]} 14. Be3 {[%clk 0:02:04]}  O-O {[%clk 0:02:30]} 15. Bh6 {[%clk 0:01:53]}  Ne8 {[%clk 0:02:21]} 16. Nd5 {[%clk 0:01:51]}  Bd8 {[%clk 0:02:14]} 17. f4 {[%clk 0:01:29]}  Kh8 {[%clk 0:02:13]} 18. fxe5 {[%clk 0:01:28]}  gxh6 {[%clk 0:02:09]} 19. e6 {[%clk 0:01:27]}  Bb6+ {[%clk 0:01:50]} 20. Kh1 {[%clk 0:01:18]}  Nc7 {[%clk 0:01:43]} 21. exf7 {[%clk 0:00:20]}  Nxd5 {[%clk 0:01:39]} 22. exd5 {[%clk 0:00:20]}  Qxd5 {[%clk 0:01:35]} 23. Rf5 {[%clk 0:00:21]}  Qe6 {[%clk 0:01:20]} 24. Re1 {[%clk 0:00:20]}  Qg6 {[%clk 0:01:11]} 25. Qh3 {[%clk 0:00:16]}  Rxf7 {[%clk 0:01:02]} 26. Rxf7 {[%clk 0:00:13]}  Qxf7 {[%clk 0:01:01]} 27. Qxh6 {[%clk 0:00:14]}  Rg8 {[%clk 0:00:54]} 0-1


[Site "https://www.chess.com"]

[Event "Titled Tuesday Blitz June 8 2021"]
[White "Quparadze, Giga"]
[Black "Suarez Gomez, Julio"]
[WhiteFideId "13602250"]
[BlackFideId "22275991"]
[WhiteElo "2658"]
[BlackElo "2376"]
[Result "1-0"]
[Round "05"]
[TimeControl "180+1"]
[Date "2021.06.08"]
[WhiteClock "0:01:14"]
[BlackClock "0:00:26"]

1. e4 {[%clk 0:03:00]}  e6 {[%clk 0:02:56]} 2. d4 {[%clk 0:03:00]}  d5 {[%clk 0:02:56]} 3. Nd2 {[%clk 0:03:00]}  c5 {[%clk 0:02:55]} 4. Ngf3 {[%clk 0:03:00]}  cxd4 {[%clk 0:02:51]} 5. Nxd4 {[%clk 0:03:01]}  Nc6 {[%clk 0:02:50]} 6. Bb5 {[%clk 0:03:01]}  Bd7 {[%clk 0:02:50]} 7. Nxc6 {[%clk 0:03:01]}  bxc6 {[%clk 0:02:51]} 8. Bd3 {[%clk 0:03:01]}  Bd6 {[%clk 0:02:50]} 9. Qe2 {[%clk 0:03:01]}  Qc7 {[%clk 0:02:48]} 10. Nf3 {[%clk 0:03:01]}  Ne7 {[%clk 0:02:47]} 11. e5 {[%clk 0:02:58]}  Bc5 {[%clk 0:02:46]} 12. O-O {[%clk 0:02:57]}  Ng6 {[%clk 0:02:42]} 13. h4 {[%clk 0:02:54]}  h6 {[%clk 0:02:30]} 14. h5 {[%clk 0:02:53]}  Ne7 {[%clk 0:02:30]} 15. Be3 {[%clk 0:02:52]}  Bxe3 {[%clk 0:02:26]} 16. Qxe3 {[%clk 0:02:53]}  O-O {[%clk 0:02:22]} 17. c4 {[%clk 0:02:46]}  Qb6 {[%clk 0:02:16]} 18. Qe2 {[%clk 0:02:43]}  Rab8 {[%clk 0:02:12]} 19. b3 {[%clk 0:02:43]}  dxc4 {[%clk 0:02:04]} 20. Bxc4 {[%clk 0:02:28]}  c5 {[%clk 0:02:01]} 21. Nd2 {[%clk 0:02:13]}  Bc6 {[%clk 0:01:58]} 22. Ne4 {[%clk 0:02:13]}  Bxe4 {[%clk 0:01:57]} 23. Qxe4 {[%clk 0:02:12]}  Rfd8 {[%clk 0:01:55]} 24. Rfd1 {[%clk 0:02:12]}  Qb4 {[%clk 0:01:51]} 25. g3 {[%clk 0:02:07]}  Nf5 {[%clk 0:01:43]} 26. Kg2 {[%clk 0:02:05]}  a5 {[%clk 0:01:34]} 27. a3 {[%clk 0:01:56]}  Qc3 {[%clk 0:01:21]} 28. Rac1 {[%clk 0:01:56]}  Qb2 {[%clk 0:01:19]} 29. a4 {[%clk 0:01:45]}  Rd4 {[%clk 0:01:09]} 30. Rxd4 {[%clk 0:01:43]}  Nxd4 {[%clk 0:01:04]} 31. Bd3 {[%clk 0:01:31]}  Qxc1 {[%clk 0:00:33]} 32. Qh7+ {[%clk 0:01:29]}  Kf8 {[%clk 0:00:34]} 33. Qh8+ {[%clk 0:01:29]}  Ke7 {[%clk 0:00:35]} 34. Qxb8 {[%clk 0:01:29]}  Qc3 {[%clk 0:00:31]} 35. Be4 {[%clk 0:01:17]}  Qxb3 {[%clk 0:00:28]} 36. Qc7+ {[%clk 0:01:14]}  Ke8 {[%clk 0:00:28]} 37. Qc8+ {[%clk 0:01:14]}  Ke7 {[%clk 0:00:25]} 38. Qxc5+ {[%clk 0:01:15]}  Ke8 {[%clk 0:00:25]} 39. Qxd4 {[%clk 0:01:15]}  Qb6 {[%clk 0:00:26]} 40. Qxb6 {[%clk 0:01:14]} 1-0


[Site "https://www.chess.com"]

[Event "Titled Tuesday Blitz June 8 2021"]
[White "Rostovtsev, Dmitry"]
[Black "Buscar, Michael"]
[WhiteFideId "34278320"]
[BlackFideId "2603616"]
[WhiteElo "2143"]
[BlackElo "2010"]
[Result "1-0"]
[Round "05"]
[TimeControl "180+1"]
[Date "2021.06.08"]
[WhiteClock "0:01:01"]
[BlackClock "0:00:07"]

1. d4 {[%clk 0:03:00]}  d5 {[%clk 0:02:55]} 2. c4 {[%clk 0:03:00]}  e6 {[%clk 0:02:55]} 3. Nf3 {[%clk 0:03:00]}  c6 {[%clk 0:02:54]} 4. e3 {[%clk 0:02:55]}  Nf6 {[%clk 0:02:54]} 5. Nc3 {[%clk 0:02:55]}  Nbd7 {[%clk 0:02:50]} 6. Bd3 {[%clk 0:02:55]}  Be7 {[%clk 0:02:51]} 7. O-O {[%clk 0:02:52]}  O-O {[%clk 0:02:50]} 8. Ne5 {[%clk 0:02:23]}  Nxe5 {[%clk 0:02:29]} 9. dxe5 {[%clk 0:02:23]}  Nd7 {[%clk 0:02:28]} 10. f4 {[%clk 0:02:23]}  Nc5 {[%clk 0:02:13]} 11. Be2 {[%clk 0:02:23]}  dxc4 {[%clk 0:02:09]} 12. Bxc4 {[%clk 0:02:21]}  Qxd1 {[%clk 0:02:02]} 13. Rxd1 {[%clk 0:02:22]}  b5 {[%clk 0:02:03]} 14. Be2 {[%clk 0:02:17]}  b4 {[%clk 0:01:50]} 15. Nb1 {[%clk 0:02:10]}  Ba6 {[%clk 0:01:40]} 16. Bxa6 {[%clk 0:02:07]}  Nxa6 {[%clk 0:01:39]} 17. Nd2 {[%clk 0:02:05]}  Rfd8 {[%clk 0:01:34]} 18. Re1 {[%clk 0:02:05]}  Nc5 {[%clk 0:01:33]} 19. Nc4 {[%clk 0:02:05]}  Nd3 {[%clk 0:01:22]} 20. Rd1 {[%clk 0:02:02]}  Bc5 {[%clk 0:01:20]} 21. Kf1 {[%clk 0:02:02]}  Rd5 {[%clk 0:01:04]} 22. Ke2 {[%clk 0:01:51]}  Rad8 {[%clk 0:01:04]} 23. Bd2 {[%clk 0:01:39]}  g5 {[%clk 0:00:50]} 24. g3 {[%clk 0:01:37]}  h5 {[%clk 0:00:49]} 25. a3 {[%clk 0:01:33]}  bxa3 {[%clk 0:00:20]} 26. bxa3 {[%clk 0:01:26]}  h4 {[%clk 0:00:20]} 27. Rab1 {[%clk 0:01:21]}  R8d7 {[%clk 0:00:18]} 28. Rb8+ {[%clk 0:01:17]}  Kg7 {[%clk 0:00:18]} 29. Rdb1 {[%clk 0:01:18]}  hxg3 {[%clk 0:00:12]} 30. hxg3 {[%clk 0:01:18]}  gxf4 {[%clk 0:00:11]} 31. gxf4 {[%clk 0:01:18]}  Kg6 {[%clk 0:00:11]} 32. Rg1+ {[%clk 0:01:05]}  Kf5 {[%clk 0:00:09]} 33. Kf3 {[%clk 0:01:03]}  Nxe5+ {[%clk 0:00:07]} 34. fxe5 {[%clk 0:01:02]}  Rxd2 {[%clk 0:00:07]} 35. e4# {[%clk 0:01:01]} 1-0


[Site "https://www.chess.com"]

[Event "Titled Tuesday Blitz June 8 2021"]
[White "Sarana, Alexey"]
[Black "Rosen, Eric"]
[WhiteFideId "24133795"]
[BlackFideId "2032562"]
[WhiteElo "2629"]
[BlackElo "2362"]
[Result "0-1"]
[Round "05"]
[TimeControl "180+1"]
[Date "2021.06.08"]
[WhiteClock "0:00:08"]
[BlackClock "0:01:19"]

1. e4 {[%clk 0:03:00]}  e5 {[%clk 0:02:59]} 2. Nf3 {[%clk 0:03:00]}  Nf6 {[%clk 0:03:00]} 3. d3 {[%clk 0:02:59]}  Bc5 {[%clk 0:02:58]} 4. Nxe5 {[%clk 0:02:46]}  Nc6 {[%clk 0:02:59]} 5. Nxc6 {[%clk 0:02:30]}  dxc6 {[%clk 0:03:00]} 6. Be2 {[%clk 0:02:29]}  h5 {[%clk 0:02:59]} 7. c3 {[%clk 0:02:21]}  Ng4 {[%clk 0:02:58]} 8. d4 {[%clk 0:02:19]}  Qh4 {[%clk 0:02:58]} 9. g3 {[%clk 0:02:06]}  Qf6 {[%clk 0:02:58]} 10. f3 {[%clk 0:02:05]}  h4 {[%clk 0:02:59]} 11. Rg1 {[%clk 0:01:38]}  hxg3 {[%clk 0:02:59]} 12. hxg3 {[%clk 0:01:33]}  Rh2 {[%clk 0:02:59]} 13. dxc5 {[%clk 0:01:24]}  Be6 {[%clk 0:03:00]} 14. Qd4 {[%clk 0:01:22]}  Bc4 {[%clk 0:03:00]} 15. Bxc4 {[%clk 0:00:52]}  Ne5 {[%clk 0:02:24]} 16. Nd2 {[%clk 0:00:35]}  Rxd2 {[%clk 0:02:20]} 17. Qxe5+ {[%clk 0:00:34]}  Qxe5 {[%clk 0:02:21]} 18. Bxd2 {[%clk 0:00:35]}  Qxc5 {[%clk 0:02:19]} 19. Bxf7+ {[%clk 0:00:33]}  Kxf7 {[%clk 0:02:18]} 20. O-O-O {[%clk 0:00:34]}  Rd8 {[%clk 0:02:02]} 21. Rde1 {[%clk 0:00:29]}  Qc4 {[%clk 0:01:50]} 22. a3 {[%clk 0:00:28]}  a5 {[%clk 0:01:39]} 23. g4 {[%clk 0:00:27]}  b5 {[%clk 0:01:39]} 24. g5 {[%clk 0:00:26]}  b4 {[%clk 0:01:30]} 25. g6+ {[%clk 0:00:25]}  Ke6 {[%clk 0:01:31]} 26. axb4 {[%clk 0:00:17]}  axb4 {[%clk 0:01:31]} 27. f4 {[%clk 0:00:15]}  Ra8 {[%clk 0:01:28]} 28. f5+ {[%clk 0:00:14]}  Kd7 {[%clk 0:01:28]} 29. Bf4 {[%clk 0:00:09]}  Qd3 {[%clk 0:01:21]} 30. b3 {[%clk 0:00:08]}  Ra1+ {[%clk 0:01:19]} 31. Kb2 {[%clk 0:00:08]}  Qxc3# {[%clk 0:01:19]} 0-1


[Site "https://www.chess.com"]

[Event "Titled Tuesday Blitz June 8 2021"]
[White "Saravana, Krishnan P."]
[Black "Bekturov, Tamerlan"]
[WhiteFideId "5018382"]
[BlackFideId "13710184"]
[WhiteElo "2245"]
[BlackElo "2186"]
[Result "1-0"]
[Round "05"]
[TimeControl "180+1"]
[Date "2021.06.08"]
[WhiteClock "0:00:15"]
[BlackClock "0:00:06"]

1. e4 {[%clk 0:03:00]}  c6 {[%clk 0:02:54]} 2. Nf3 {[%clk 0:02:59]}  d5 {[%clk 0:02:55]} 3. d3 {[%clk 0:02:58]}  dxe4 {[%clk 0:02:54]} 4. dxe4 {[%clk 0:02:58]}  Qc7 {[%clk 0:02:54]} 5. Bc4 {[%clk 0:02:56]}  e5 {[%clk 0:02:44]} 6. a4 {[%clk 0:02:47]}  Bc5 {[%clk 0:02:35]} 7. Ng5 {[%clk 0:02:43]}  Nh6 {[%clk 0:02:35]} 8. Qh5 {[%clk 0:02:42]}  O-O {[%clk 0:02:13]} 9. h3 {[%clk 0:02:26]}  Nd7 {[%clk 0:02:10]} 10. Nf3 {[%clk 0:01:52]}  Qd6 {[%clk 0:01:49]} 11. Bxh6 {[%clk 0:01:38]}  Qxh6 {[%clk 0:01:49]} 12. Qxh6 {[%clk 0:01:38]}  gxh6 {[%clk 0:01:47]} 13. Ke2 {[%clk 0:01:32]}  Kg7 {[%clk 0:01:46]} 14. Nbd2 {[%clk 0:01:31]}  a5 {[%clk 0:01:31]} 15. Rhd1 {[%clk 0:01:29]}  Nf6 {[%clk 0:01:25]} 16. Nxe5 {[%clk 0:01:21]}  Bd4 {[%clk 0:01:25]} 17. Nd3 {[%clk 0:01:20]}  Re8 {[%clk 0:01:21]} 18. c3 {[%clk 0:01:05]}  b5 {[%clk 0:00:52]} 19. axb5 {[%clk 0:00:50]}  Bb6 {[%clk 0:00:35]} 20. e5 {[%clk 0:00:37]}  Nd7 {[%clk 0:00:31]} 21. Nf3 {[%clk 0:00:36]}  Bb7 {[%clk 0:00:26]} 22. Kf1 {[%clk 0:00:35]}  Nf8 {[%clk 0:00:17]} 23. Nf4 {[%clk 0:00:35]}  Ng6 {[%clk 0:00:16]} 24. Nh5+ {[%clk 0:00:33]}  Kf8 {[%clk 0:00:16]} 25. Rd7 {[%clk 0:00:32]}  Re7 {[%clk 0:00:16]} 26. Rad1 {[%clk 0:00:30]}  cxb5 {[%clk 0:00:16]} 27. Bxb5 {[%clk 0:00:28]}  Bxf3 {[%clk 0:00:16]} 28. gxf3 {[%clk 0:00:27]}  Nxe5 {[%clk 0:00:17]} 29. Nf6 {[%clk 0:00:26]}  Nxd7 {[%clk 0:00:16]} 30. Nxd7+ {[%clk 0:00:25]}  Rxd7 {[%clk 0:00:17]} 31. Rxd7 {[%clk 0:00:25]}  Rd8 {[%clk 0:00:17]} 32. Rb7 {[%clk 0:00:23]}  Rd6 {[%clk 0:00:17]} 33. Bc4 {[%clk 0:00:23]}  Rf6 {[%clk 0:00:18]} 34. Bxf7 {[%clk 0:00:23]}  Bc5 {[%clk 0:00:12]} 35. Bd5 {[%clk 0:00:23]}  Rb6 {[%clk 0:00:12]} 36. Rxb6 {[%clk 0:00:22]}  Bxb6 {[%clk 0:00:13]} 37. Ke2 {[%clk 0:00:22]}  Ke7 {[%clk 0:00:13]} 38. Be4 {[%clk 0:00:22]}  Kf6 {[%clk 0:00:12]} 39. Bxh7 {[%clk 0:00:22]}  Ke5 {[%clk 0:00:12]} 40. h4 {[%clk 0:00:21]}  Kf4 {[%clk 0:00:12]} 41. h5 {[%clk 0:00:21]}  Kg5 {[%clk 0:00:12]} 42. Bg6 {[%clk 0:00:21]}  Kf4 {[%clk 0:00:13]} 43. Be4 {[%clk 0:00:20]}  Kg5 {[%clk 0:00:13]} 44. Bg6 {[%clk 0:00:20]}  Kf4 {[%clk 0:00:14]} 45. Be8 {[%clk 0:00:20]}  Bc5 {[%clk 0:00:13]} 46. Bd7 {[%clk 0:00:18]}  Kg5 {[%clk 0:00:13]} 47. Bg4 {[%clk 0:00:18]}  Kf4 {[%clk 0:00:14]} 48. Kd3 {[%clk 0:00:18]}  Bxf2 {[%clk 0:00:09]} 49. Kc4 {[%clk 0:00:18]}  Be3 {[%clk 0:00:06]} 50. Kb5 {[%clk 0:00:18]}  Bc1 {[%clk 0:00:07]} 51. b3 {[%clk 0:00:18]}  Bd2 {[%clk 0:00:07]} 52. c4 {[%clk 0:00:18]}  Ke5 {[%clk 0:00:07]} 53. c5 {[%clk 0:00:17]}  Bb4 {[%clk 0:00:06]} 54. c6 {[%clk 0:00:15]}  Kd6 {[%clk 0:00:06]} 55. Kb6 {[%clk 0:00:15]}  Bc5+ {[%clk 0:00:06]} 56. Kb7 {[%clk 0:00:15]} 1-0


[Site "https://www.chess.com"]

[Event "Titled Tuesday Blitz June 8 2021"]
[White "Sargsyan, Anna M."]
[Black "Kukhmazov, Arsen"]
[WhiteFideId "13308130"]
[BlackFideId "24108260"]
[WhiteElo "2263"]
[BlackElo "2453"]
[Result "0-1"]
[Round "05"]
[TimeControl "180+1"]
[Date "2021.06.08"]
[WhiteClock "0:00:07"]
[BlackClock "0:01:22"]

1. d4 {[%clk 0:03:00]}  d5 {[%clk 0:02:59]} 2. c4 {[%clk 0:02:59]}  c6 {[%clk 0:03:00]} 3. Nf3 {[%clk 0:02:54]}  Nf6 {[%clk 0:03:00]} 4. Nc3 {[%clk 0:02:54]}  dxc4 {[%clk 0:02:59]} 5. a4 {[%clk 0:02:52]}  Bf5 {[%clk 0:02:59]} 6. Ne5 {[%clk 0:02:49]}  Nbd7 {[%clk 0:02:59]} 7. Nxc4 {[%clk 0:02:49]}  Qc7 {[%clk 0:03:00]} 8. g3 {[%clk 0:02:49]}  e5 {[%clk 0:03:00]} 9. dxe5 {[%clk 0:02:45]}  Nxe5 {[%clk 0:03:01]} 10. Bf4 {[%clk 0:02:45]}  Nfd7 {[%clk 0:03:02]} 11. Bg2 {[%clk 0:02:45]}  g5 {[%clk 0:03:02]} 12. Bxe5 {[%clk 0:02:02]}  Nxe5 {[%clk 0:03:01]} 13. Qd4 {[%clk 0:02:03]}  f6 {[%clk 0:03:02]} 14. O-O-O {[%clk 0:01:53]}  Be6 {[%clk 0:03:00]} 15. Nxe5 {[%clk 0:01:41]}  Qxe5 {[%clk 0:02:47]} 16. Qxe5 {[%clk 0:01:40]}  fxe5 {[%clk 0:02:48]} 17. Ne4 {[%clk 0:01:41]}  Be7 {[%clk 0:02:48]} 18. Nd6+ {[%clk 0:01:40]}  Bxd6 {[%clk 0:02:48]} 19. Rxd6 {[%clk 0:01:41]}  Ke7 {[%clk 0:02:49]} 20. Rd3 {[%clk 0:01:26]}  Rhf8 {[%clk 0:02:48]} 21. f3 {[%clk 0:01:21]}  Bc4 {[%clk 0:02:40]} 22. Re3 {[%clk 0:01:20]}  Kf6 {[%clk 0:02:40]} 23. g4 {[%clk 0:01:20]}  h6 {[%clk 0:02:23]} 24. h4 {[%clk 0:01:20]}  Rh8 {[%clk 0:02:20]} 25. b3 {[%clk 0:01:16]}  Bd5 {[%clk 0:02:17]} 26. Kc2 {[%clk 0:01:17]}  Rad8 {[%clk 0:02:17]} 27. Rh2 {[%clk 0:01:11]}  Bf7 {[%clk 0:02:08]} 28. Rc3 {[%clk 0:01:07]}  Bg6+ {[%clk 0:02:03]} 29. e4 {[%clk 0:01:07]}  Rh7 {[%clk 0:02:02]} 30. h5 {[%clk 0:00:57]}  Be8 {[%clk 0:01:59]} 31. Bf1 {[%clk 0:00:56]}  Rhd7 {[%clk 0:01:59]} 32. Rd3 {[%clk 0:00:57]}  Rxd3 {[%clk 0:01:54]} 33. Bxd3 {[%clk 0:00:58]}  Bf7 {[%clk 0:01:55]} 34. Rd2 {[%clk 0:00:53]}  Rd4 {[%clk 0:01:51]} 35. Kc3 {[%clk 0:00:53]}  c5 {[%clk 0:01:51]} 36. Bc2 {[%clk 0:00:52]}  Ke7 {[%clk 0:01:50]} 37. Rf2 {[%clk 0:00:49]}  Kd6 {[%clk 0:01:50]} 38. Rf1 {[%clk 0:00:48]}  Kc6 {[%clk 0:01:49]} 39. Ra1 {[%clk 0:00:45]}  b6 {[%clk 0:01:49]} 40. Ra3 {[%clk 0:00:43]}  a6 {[%clk 0:01:47]} 41. Ra1 {[%clk 0:00:43]}  Kb7 {[%clk 0:01:45]} 42. Rd1 {[%clk 0:00:29]}  b5 {[%clk 0:01:40]} 43. axb5 {[%clk 0:00:29]}  axb5 {[%clk 0:01:41]} 44. Rd3 {[%clk 0:00:17]}  Kc6 {[%clk 0:01:36]} 45. Rd1 {[%clk 0:00:14]}  b4+ {[%clk 0:01:26]} 46. Kb2 {[%clk 0:00:14]}  Rxd1 {[%clk 0:01:26]} 47. Bxd1 {[%clk 0:00:15]}  c4 {[%clk 0:01:27]} 48. bxc4 {[%clk 0:00:14]}  Kc5 {[%clk 0:01:27]} 49. Kc2 {[%clk 0:00:09]}  Bxc4 {[%clk 0:01:27]} 50. Kd2 {[%clk 0:00:08]}  Kd4 {[%clk 0:01:28]} 51. Bc2 {[%clk 0:00:08]}  b3 {[%clk 0:01:28]} 52. Bb1 {[%clk 0:00:08]}  Bg8 {[%clk 0:01:23]} 53. Bd3 {[%clk 0:00:08]}  b2 {[%clk 0:01:22]} 54. Bb1 {[%clk 0:00:08]}  Bb3 {[%clk 0:01:22]} 55. Ke2 {[%clk 0:00:07]}  Kc3 {[%clk 0:01:22]} 0-1


[Site "https://www.chess.com"]